Workbook

Sheet Popis namirnica
M1: =Izračuni!M9 -> MLIJEČNI PROIZVODI UKUPNO
B2: Popis namirnica
C3: Gotovo | D3: ARTIKL | E3: TRGOVINA | F3: KATEGORIJA | G3: KOLIČINA | H3: JEDINICA | I3: JEDINIČNA CIJENA | J3: UKUPNO | K3: KOMENTAR | M3: =Izračuni!L9 -> 37
C4: 1 | D4: Naranče | E4: Samoposluga | F4: Voće i povrće | G4: 2 | H4: kg | I4: 2.99 kn | J4: =IFERROR(Popis[KOLIČINA]*Popis[JEDINIČNA CIJENA],"") -> 5.98 kn | M4: =Izračuni!M8 -> VOĆE I POVRĆE UKUPNO
D5: Jabuke | E5: Voćnjak | F5: Voće i povrće | G5: 3 | H5: kg | I5: 1.99 kn | J5: =IFERROR(Popis[KOLIČINA]*Popis[JEDINIČNA CIJENA],"") -> 5.97 kn | K5: Kupon | M5: =Izračuni!L8 -> 45
D6: Banane | E6: Samoposluga | F6: Voće i povrće | G6: 1 | H6: svežanj | I6: 3.99 kn | J6: =IFERROR(Popis[KOLIČINA]*Popis[JEDINIČNA CIJENA],"") -> 3.99 kn
D7: Zelena salata | E7: Tržnica | F7: Voće i povrće | G7: 2 | H7: glavica | I7: 2.29 kn | J7: =IFERROR(Popis[KOLIČINA]*Popis[JEDINIČNA CIJENA],"") -> 4.58 kn | M7: =Izračuni!M7 -> MESNI PROIZVODI UKUPNO
D8: Rajčice | E8: Tržnica | F8: Voće i povrće | G8: 4 | H8: kg | I8: 3.49 kn | J8: =IFERROR(Popis[KOLIČINA]*Popis[JEDINIČNA CIJENA],"") -> 13.96 kn | M8: =Izračuni!L7 -> 80
D9: Tikvice | E9: Tržnica | F9: Voće i povrće | G9: 2 | H9: komad | I9: 1.50 kn | J9: =IFERROR(Popis[KOLIČINA]*Popis[JEDINIČNA CIJENA],"") -> 3.00 kn
D10: Celer | E10: Samoposluga | F10: Voće i povrće | G10: 2 | H10: svežanj | I10: 1.99 kn | J10: =IFERROR(Popis[KOLIČINA]*Popis[JEDINIČNA CIJENA],"") -> 3.98 kn | M10: =Izračuni!M6 -> PLODOVI MORA UKUPNO
D11: Krastavac | E11: Tržnica | F11: Voće i povrće | G11: 1 | H11: kg | I11: 2.29 kn | J11: =IFERROR(Popis[KOLIČINA]*Popis[JEDINIČNA CIJENA],"") -> 2.29 kn | M11: =Izračuni!L6 -> 109
D12: Gljive | E12: Samoposluga | F12: Voće i povrće | G12: 0.5 | H12: kg | I12: 2.25 kn | J12: =IFERROR(Popis[KOLIČINA]*Popis[JEDINIČNA CIJENA],"") -> 1.13 kn | K12: Veliki smeđi šampinjoni
D13: Mlijeko | E13: Dostava | F13: Mliječni proizvodi | G13: 2 | H13: l | I13: 3.99 kn | J13: =IFERROR(Popis[KOLIČINA]*Popis[JEDINIČNA CIJENA],"") -> 7.98 kn | M13: =Izračuni!M3 -> OSTALO – UKUPNO
D14: Sir | E14: Dostava | F14: Mliječni proizvodi | G14: 1 | H14: kg | I14: 9.99 kn | J14: =IFERROR(Popis[KOLIČINA]*Popis[JEDINIČNA CIJENA],"") -> 9.99 kn | K14: Raznovrsni tvrdi sirevi | M14: =Izračuni!L3 -> 0
D15: Jaja | E15: Dostava | F15: Mliječni proizvodi | G15: 2 | H15: tucet | I15: 3.50 kn | J15: =IFERROR(Popis[KOLIČINA]*Popis[JEDINIČNA CIJENA],"") -> 7.00 kn
D16: Svježi sir | E16: Dostava | F16: Mliječni proizvodi | G16: 1 | H16: 500 g | I16: 3.89 kn | J16: =IFERROR(Popis[KOLIČINA]*Popis[JEDINIČNA CIJENA],"") -> 3.89 kn | M16: =Izračuni!M4 -> NAMIRNICE – UKUPNO
D17: Kiselo vrhnje | E17: Dostava | F17: Mliječni proizvodi | G17: 1 | H17: 250 g | I17: 2.99 kn | J17: =IFERROR(Popis[KOLIČINA]*Popis[JEDINIČNA CIJENA],"") -> 2.99 kn | M17: =UkupniIznosZaNamirnice -> 271
D18: Jogurt | E18: Samoposluga | F18: Mliječni proizvodi | G18: 1 | H18: 500 g | I18: 4.99 kn | J18: =IFERROR(Popis[KOLIČINA]*Popis[JEDINIČNA CIJENA],"") -> 4.99 kn | K18: Grčki jogurt s medom
D19: Govedina | E19: Tržnica | F19: Mesni proizvodi | G19: 10 | H19: kg | I19: 7.99 kn | J19: =IFERROR(Popis[KOLIČINA]*Popis[JEDINIČNA CIJENA],"") -> 79.90 kn | K19: Fileti omotani slaninom
D20: Divlji losos | E20: Ribarnica | F20: Plodovi mora | G20: 6 | H20: kg | I20: 8.99 kn | J20: =IFERROR(Popis[KOLIČINA]*Popis[JEDINIČNA CIJENA],"") -> 53.94 kn
D21: Noge aljaškog kraljevskog raka | E21: Ribarnica | F21: Plodovi mora | G21: 5 | H21: kg | I21: 10.99 kn | J21: =IFERROR(Popis[KOLIČINA]*Popis[JEDINIČNA CIJENA],"") -> 54.95 kn

Sheet Izračuni (hidden)
A1: *** Ovaj list mora ostati sakriven ***
K3: =SUM(Popis[UKUPNO])-SUM(K6:K9) -> 0.00 kn | L3: =ROUND(K3,0) -> 0 kn | M3: OSTALO – UKUPNO
L4: =ROUNDUP(SUM(Popis[UKUPNO]),0) -> 271 kn | M4: NAMIRNICE – UKUPNO
E6: =IFERROR(INDEX(Popis[KATEGORIJA],MATCH(,COUNTIF($E$5:E5,Popis[KATEGORIJA]),)),"") -> Voće i povrće | F6: =SUMIFS(Popis[UKUPNO],Popis[KATEGORIJA],E6) -> 44.875 | G6: =F6+ROW()/1000000 -> 44.875006 | H6: =LARGE($G$6:$G$21,1) -> 108.890009 | I6: =MATCH(H6,$G$6:$G$21,0) -> 4 | J6: =INDEX($E$6:$E$21,$I6) -> Plodovi mora | K6: =INDEX($F$6:$F$21,$I6) -> 108.89 kn | L6: =ROUND(K6,0) -> 109 kn | M6: =UPPER(J6) & " UKUPNO" -> PLODOVI MORA UKUPNO
E7: =IFERROR(INDEX(Popis[KATEGORIJA],MATCH(,COUNTIF($E$5:E6,Popis[KATEGORIJA]),)),"") -> Mliječni proizvodi | F7: =SUMIFS(Popis[UKUPNO],Popis[KATEGORIJA],E7) -> 36.84 | G7: =F7+ROW()/1000000 -> 36.840007 | H7: =LARGE($G$6:$G$21,2) -> 79.900008 | I7: =MATCH(H7,$G$6:$G$21,0) -> 3 | J7: =INDEX($E$6:$E$21,$I7) -> Mesni proizvodi | K7: =INDEX($F$6:$F$21,$I7) -> 79.90 kn | L7: =ROUND(K7,0) -> 80 kn | M7: =UPPER(J7) & " UKUPNO" -> MESNI PROIZVODI UKUPNO
E8: =IFERROR(INDEX(Popis[KATEGORIJA],MATCH(,COUNTIF($E$5:E7,Popis[KATEGORIJA]),)),"") -> Mesni proizvodi | F8: =SUMIFS(Popis[UKUPNO],Popis[KATEGORIJA],E8) -> 79.9 | G8: 79.900008 | H8: =LARGE($G$6:$G$21,3) -> 44.875006 | I8: =MATCH(H8,$G$6:$G$21,0) -> 1 | J8: =INDEX($E$6:$E$21,$I8) -> Voće i povrće | K8: =INDEX($F$6:$F$21,$I8) -> 44.88 kn | L8: =ROUND(K8,0) -> 45 kn | M8: =UPPER(J8) & " UKUPNO" -> VOĆE I POVRĆE UKUPNO
E9: =IFERROR(INDEX(Popis[KATEGORIJA],MATCH(,COUNTIF($E$5:E8,Popis[KATEGORIJA]),)),"") -> Plodovi mora | F9: =SUMIFS(Popis[UKUPNO],Popis[KATEGORIJA],E9) -> 108.89 | G9: 108.890009 | H9: =LARGE($G$6:$G$21,4) -> 36.840007 | I9: =MATCH(H9,$G$6:$G$21,0) -> 2 | J9: =INDEX($E$6:$E$21,$I9) -> Mliječni proizvodi | K9: =INDEX($F$6:$F$21,$I9) -> 36.84 kn | L9: =ROUND(K9,0) -> 37 kn | M9: =UPPER(J9) & " UKUPNO" -> MLIJEČNI PROIZVODI UKUPNO
E10: =IFERROR(INDEX(Popis[KATEGORIJA],MATCH(,COUNTIF($E$5:E9,Popis[KATEGORIJA]),)),"") ->  | F10: =SUMIFS(Popis[UKUPNO],Popis[KATEGORIJA],E10) -> 0 | G10: 1e-05
E11: =IFERROR(INDEX(Popis[KATEGORIJA],MATCH(,COUNTIF($E$5:E10,Popis[KATEGORIJA]),)),"") ->  | F11: =SUMIFS(Popis[UKUPNO],Popis[KATEGORIJA],E11) -> 0 | G11: 1.1e-05
E12: =IFERROR(INDEX(Popis[KATEGORIJA],MATCH(,COUNTIF($E$5:E11,Popis[KATEGORIJA]),)),"") ->  | F12: =SUMIFS(Popis[UKUPNO],Popis[KATEGORIJA],E12) -> 0 | G12: 1.2e-05
E13: =IFERROR(INDEX(Popis[KATEGORIJA],MATCH(,COUNTIF($E$5:E12,Popis[KATEGORIJA]),)),"") ->  | F13: =SUMIFS(Popis[UKUPNO],Popis[KATEGORIJA],E13) -> 0 | G13: 1.3e-05
E14: =IFERROR(INDEX(Popis[KATEGORIJA],MATCH(,COUNTIF($E$5:E13,Popis[KATEGORIJA]),)),"") ->  | F14: =SUMIFS(Popis[UKUPNO],Popis[KATEGORIJA],E14) -> 0 | G14: 1.4e-05
E15: =IFERROR(INDEX(Popis[KATEGORIJA],MATCH(,COUNTIF($E$5:E14,Popis[KATEGORIJA]),)),"") ->  | F15: =SUMIFS(Popis[UKUPNO],Popis[KATEGORIJA],E15) -> 0 | G15: 1.5e-05
E16: =IFERROR(INDEX(Popis[KATEGORIJA],MATCH(,COUNTIF($E$5:E15,Popis[KATEGORIJA]),)),"") ->  | F16: =SUMIFS(Popis[UKUPNO],Popis[KATEGORIJA],E16) -> 0 | G16: 1.6e-05
E17: =IFERROR(INDEX(Popis[KATEGORIJA],MATCH(,COUNTIF($E$5:E16,Popis[KATEGORIJA]),)),"") ->  | F17: =SUMIFS(Popis[UKUPNO],Popis[KATEGORIJA],E17) -> 0 | G17: 1.7e-05
E18: =IFERROR(INDEX(Popis[KATEGORIJA],MATCH(,COUNTIF($E$5:E17,Popis[KATEGORIJA]),)),"") ->  | F18: =SUMIFS(Popis[UKUPNO],Popis[KATEGORIJA],E18) -> 0 | G18: 1.8e-05
E19: =IFERROR(INDEX(Popis[KATEGORIJA],MATCH(,COUNTIF($E$5:E18,Popis[KATEGORIJA]),)),"") ->  | F19: =SUMIFS(Popis[UKUPNO],Popis[KATEGORIJA],E19) -> 0 | G19: 1.9e-05
E20: =IFERROR(INDEX(Popis[KATEGORIJA],MATCH(,COUNTIF($E$5:E19,Popis[KATEGORIJA]),)),"") ->  | F20: =SUMIFS(Popis[UKUPNO],Popis[KATEGORIJA],E20) -> 0 | G20: 2e-05
E21: =IFERROR(INDEX(Popis[KATEGORIJA],MATCH(,COUNTIF($E$5:E20,Popis[KATEGORIJA]),)),"") ->  | F21: =SUMIFS(Popis[UKUPNO],Popis[KATEGORIJA],E21) -> 0 | G21: 2.1e-05
